fUST/lending_fUST_20250407
["ID","MTS","AMOUNT","RATE_DAILY","PERIOD"]
[357358985,1744017039466,-260.072162,0.00036847,14]
[357358986,1744017039475,-323.614577,0.00036847,14]
[357358987,1744017039485,-323.614577,0.00036847,14]
[357358988,1744017039494,-408.558595,0.00036847,14]
[357358990,1744017039504,-408.558595,0.00036847,14]
[357358991,1744017039514,-896.130952,0.00036847,14]
[357358992,1744017039523,-896.130952,0.00036847,14]
[357358993,1744017039533,-1149.83,0.0003685,3]
[357358994,1744017039543,-33647.7865793,0.0003686,3]
[357358996,1744017039553,-1191.47175187,0.0003686,3]
[357358997,1744017039562,-160.0,0.0003686,3]
[357358998,1744017039571,-897.63610751,0.00036868,2]
[357358999,1744017039581,-303.375879,0.0003687,14]
[357359000,1744017039591,-303.375879,0.0003687,14]
[357359001,1744017039600,-834.657255,0.0003687,14]
[357359003,1744017039610,-834.657255,0.0003687,14]
[357359004,1744017039624,-21334.71635887,0.00036872,2]
[357359005,1744017039633,-156.27527193,0.000369,2]
[357359006,1744017039644,-156.27527198,0.000369,2]
[357359007,1744017039654,-175.45227962,0.000369,2]
[357359008,1744017039664,-151.0,0.000369,18]
[357359009,1744017039674,-151.0,0.000369,15]
[357359010,1744017039683,-151.0,0.000369,18]
[357359011,1744017039693,-151.0,0.000369,16]
[357359012,1744017039702,-151.0,0.000369,15]
[357359013,1744017039712,-2023.300878,0.00036924,14]
[357359014,1744017039721,-164.836536,0.00036924,14]
[357359015,1744017039731,-164.836536,0.00036924,14]
[357359016,1744017039740,-151.0,0.00036924,14]
[357359017,1744017039750,-3472.04325015,0.00036934,13]
[357359019,1744017039866,-419.36665037,0.00036963,3]
[357359020,1744017039890,-679.56509734,0.00036963,3]
[357359021,1744017039903,-67295.5731586,0.00036968,3]
[357359022,1744017039913,-2382.94350374,0.00036968,3]
[357359023,1744017039923,-28006.56628179,0.00036968,3]
[357359024,1744017039933,-47693.54351281,0.00036968,2]
[357359025,1744017039942,-3008.343652,0.00036968,14]
[357359026,1744017039952,-3008.343652,0.00036968,14]
[357359027,1744017039962,-134591.146317,0.00036968,3]
[357359028,1744017039974,-4765.88700748,0.00036968,3]
[357359029,1744017039984,-185.17044561,0.00036973,5]
[357359030,1744017039994,-500.0,0.00036973,2]
[357359031,1744017040005,-500.0,0.00036973,5]
[357359032,1744017040015,-500.0,0.00036973,5]
[357359033,1744017040025,-500.0,0.00036973,5]
[357359034,1744017040036,-500.0,0.00036973,5]
[357359035,1744017040046,-500.0,0.00036973,5]
[357359036,1744017040056,-500.0,0.00036973,5]
[357359037,1744017040067,-505.80105704,0.00036973,5]
[357359038,1744017040078,-500.0,0.00036973,5]
[357359039,1744017040089,-500.0,0.00036973,2]
[357359040,1744017040099,-500.0,0.00036973,5]
[357359041,1744017040109,-679.56509734,0.00036978,3]
[357359042,1744017040119,-160838.02678814,0.00036978,25]
[357359043,1744017040168,-3458.90126435,0.00036978,25]
[357359044,1744017040179,-3008.343652,0.00036978,14]
[357359045,1744017040188,-3008.343652,0.00036978,14]
[357359046,1744017040198,-3008.343652,0.00036978,14]
[357359047,1744017040207,-2210.52717095,0.00036978,14]
[357359050,1744017040736,-174.0,0.00022,2]
[357359051,1744017040746,-174.0,0.00022192,2]
[357359052,1744017040755,-3409.61269143,0.000362,98]
[357359053,1744017040764,-290.71635271,0.00036634,2]
[357359054,1744017040774,-797.81648105,0.00036978,14]
[357359055,1744017040784,-200.0,0.00036978,2]
[357359056,1744017040796,-679.56509734,0.0003698,3]
[357359057,1744017040805,-151.0,0.0003699,14]
[357359058,1744017040814,-177.509781,0.0003699,14]
[357359059,1744017040823,-383.156646,0.0003699,14]
[357359060,1744017040834,-383.156646,0.0003699,14]
[357359061,1744017040843,-662.09555,0.0003699,14]
[357359062,1744017040852,-662.09555,0.0003699,14]
[357359063,1744017040861,-535.915428,0.0003699,14]
[357359064,1744017040872,-151.0,0.0003699,14]
[357359065,1744017040882,-151.0,0.0003699,14]
[357359066,1744017040891,-535.915428,0.0003699,14]
[357359067,1744017040902,-151.0,0.0003699,14]
[357359068,1744017040911,-33647.7865793,0.0003699,3]
[357359069,1744017040920,-13106.1892706,0.0003699,3]
[357359070,1744017040929,-157.475513,0.0003699,14]
[357359071,1744017040939,-157.475513,0.0003699,14]
[357359072,1744017040948,-1192.537389,0.0003699,2]
[357359073,1744017040958,-157.475513,0.0003699,14]
[357359074,1744017040967,-151.0,0.0003699,14]
[357359075,1744017040976,-157.475513,0.0003699,14]
[357359076,1744017040985,-151.0,0.0003699,14]
[357359077,1744017040994,-1192.537389,0.0003699,2]
[357359078,1744017041003,-151.0,0.00037,17]
[357359079,1744017041013,-151.0,0.00037,14]
[357359080,1744017041022,-151.0,0.00037,14]
[357359081,1744017041032,-151.0,0.00037,14]
[357359082,1744017041042,-213.258313,0.00037,14]
[357359083,1744017041051,-151.0,0.00037,14]
[357359084,1744017041061,-213.258313,0.00037,14]
[357359085,1744017041071,-1260.667683,0.00037,14]
[357359086,1744017041080,-1260.667683,0.00037,14]
[357359087,1744017041089,-1336.49035,0.00037,14]
[357359088,1744017041098,-1336.49035,0.00037,14]
[357359089,1744017041107,-2512.573889,0.00037,2]
[357359090,1744017041116,-647.729864,0.00037,14]
[357359091,1744017041125,-647.729864,0.00037,14]
[357359092,1744017041135,-151.0,0.00037,14]
[357359093,1744017041144,-151.0,0.00037,14]
[357359094,1744017041155,-542.260613,0.00037,14]
[357359095,1744017041164,-542.260613,0.00037,14]
[357359096,1744017041173,-366.689519,0.00037,14]
[357359097,1744017041182,-151.0,0.00037,14]
[357359098,1744017041191,-366.689519,0.00037,14]
[357359099,1744017041200,-151.0,0.00037,14]
[357359100,1744017041209,-151.0,0.00037,14]
[357359101,1744017041218,-7167.0,0.00037,2]
[357359102,1744017041227,-383.156646,0.00037,14]
[357359103,1744017041236,-383.156646,0.00037,14]
[357359104,1744017041245,-662.09555,0.00037,14]
[357359105,1744017041254,-662.09555,0.00037,14]
[357359106,1744017041264,-151.0,0.00037,14]
[357359107,1744017041273,-326.229334,0.00037,14]
[357359108,1744017041282,-326.229334,0.00037,14]
[357359109,1744017041291,-535.915428,0.00037,14]
[357359110,1744017041300,-151.0,0.00037,14]
[357359111,1744017041309,-151.0,0.00037,14]
[357359112,1744017041317,-535.915428,0.00037,14]
[357359113,1744017041326,-151.0,0.00037,14]
[357359114,1744017041335,-151.0,0.00037,15]
[357359115,1744017041344,-151.0,0.00037,14]
[357359116,1744017041353,-151.0,0.00037,18]
[357359117,1744017041362,-151.0,0.00037,19]
[357359118,1744017041371,-151.0,0.00037,14]
[357359119,1744017041380,-157.475513,0.00037,14]
[357359120,1744017041389,-1192.537389,0.00037,2]
[357359121,1744017041398,-204.306428,0.00037,14]
[357359122,1744017041410,-157.475513,0.00037,14]
[357359123,1744017041419,-151.0,0.00037,14]
[357359124,1744017041428,-1192.537389,0.00037,2]
[357359125,1744017041437,-204.306428,0.00037,14]
[357359126,1744017041446,-3008.343652,0.00037,14]
[357359127,1744017041455,-3008.343652,0.00037,14]
[357359128,1744017041463,-156.27527193,0.00037012,2]
[357359129,1744017041473,-151.0,0.0003703,14]
[357359130,1744017041482,-151.0,0.0003703,14]
[357359131,1744017041491,-151.0,0.0003703,14]
[357359132,1744017041501,-151.0,0.000371,19]
[357359133,1744017041510,-1149.82,0.00037112,3]
[357359134,1744017041519,-156.27527193,0.00037125,2]
[357359135,1744017041528,-753.91299545,0.00037167,2]
[357359136,1744017041537,-151.0,0.000372,19]
[357359137,1744017041546,-151.0,0.000372,18]
[357359138,1744017041555,-156.27527193,0.00037237,2]
[357359139,1744017041563,-151.0,0.000373,10]
[357359140,1744017041572,-151.0,0.000373,14]
[357359141,1744017041581,-151.0,0.000373,12]
[357359142,1744017041727,-151.0,0.000373,14]
[357359143,1744017041737,-151.0,0.000373,11]
[357359144,1744017041746,-12527.9349248,0.00037316,2]
[357359145,1744017041755,-419.36665037,0.00037316,2]
[357359146,1744017041764,-160.0,0.00037316,2]
[357359147,1744017041774,-774.776331,0.00037338,2]
[357359148,1744017041784,-774.776331,0.00037338,2]
[357359149,1744017041796,-151.0,0.00037338,14]
[357359150,1744017041806,-151.0,0.00037338,14]
[357359151,1744017041815,-151.0,0.00037338,14]
[357359152,1744017041825,-930.836645,0.00037338,14]
[357359153,1744017041835,-930.836645,0.00037338,14]
[357359154,1744017041844,-313.14235,0.00037338,14]
[357359155,1744017041853,-313.14235,0.00037338,14]
[357359156,1744017041864,-151.0,0.00037338,14]
[357359157,1744017041874,-156.27527193,0.0003735,2]
[357359158,1744017041883,-574.92,0.0003736,3]
[357359159,1744017041892,-303.375879,0.00037386,14]
[357359160,1744017041902,-303.375879,0.00037386,14]
[357359161,1744017041912,-151.0,0.000374,11]
[357359162,1744017041922,-151.0,0.000374,15]
[357359163,1744017041931,-151.0,0.000374,15]
[357359164,1744017041941,-151.0,0.000374,14]
[357359165,1744017041951,-151.0,0.000374,20]
[357359166,1744017041960,-156.27527193,0.00037462,2]
[357359167,1744017041971,-151.0,0.000375,12]
[357359168,1744017041980,-151.0,0.000375,20]
[357359169,1744017041990,-151.0,0.000375,17]
[357359170,1744017041999,-3472.04325015,0.00037521,13]
[357359171,1744017042008,-1191.47175187,0.00037532,3]
[357359172,1744017042018,-151.0,0.00037542,14]
[357359173,1744017042027,-733.427941,0.00037542,14]
[357359174,1744017042038,-733.427941,0.00037542,14]
[357359175,1744017042047,-151.0,0.00037542,14]
[357359176,1744017042057,-151.0,0.00037542,14]
[357359177,1744017042066,-151.0,0.00037542,14]
[357359178,1744017042076,-151.0,0.00037542,14]
[357359179,1744017042086,-151.0,0.00037542,14]
[357359180,1744017042095,-213.258313,0.00037542,14]
[357359181,1744017042105,-198.043148,0.00037542,14]
[357359182,1744017042114,-213.258313,0.00037542,14]
[357359183,1744017042124,-1260.667683,0.00037542,14]
[357359184,1744017042133,-1260.667683,0.00037542,14]
[357359185,1744017042143,-1336.49035,0.00037542,14]
[357359186,1744017042153,-1336.49035,0.00037542,14]
[357359187,1744017042163,-647.729864,0.00037542,14]
[357359188,1744017042173,-647.729864,0.00037542,14]
[357359189,1744017042182,-151.0,0.00037542,14]
[357359190,1744017042191,-151.0,0.00037542,14]
[357359191,1744017042201,-542.260613,0.00037542,14]
[357359192,1744017042211,-542.260613,0.00037542,14]
[357359193,1744017042220,-366.689519,0.00037542,14]
[357359194,1744017042229,-151.0,0.00037542,14]
[357359195,1744017042239,-366.689519,0.00037542,14]
[357359196,1744017042248,-151.0,0.00037542,14]
[357359197,1744017042257,-300.431765,0.00037542,14]
[357359198,1744017042267,-326.229334,0.00037542,14]
[357359199,1744017042276,-326.229334,0.00037542,14]
[357359200,1744017042286,-151.0,0.00037542,14]
[357359201,1744017042295,-245.953618,0.00037542,14]
[357359202,1744017042305,-157.475513,0.00037542,14]
[357359203,1744017042314,-204.306428,0.00037542,14]
[357359204,1744017042324,-157.475513,0.00037542,14]
[357359205,1744017042333,-151.0,0.00037542,14]
[357359206,1744017042342,-204.306428,0.00037542,14]
[357359207,1744017042351,-3008.343652,0.00037542,14]
[357359208,1744017042360,-3008.343652,0.00037542,14]
[357359209,1744017042370,-1191.47175187,0.00037543,3]
[357359210,1744017042379,-151.0,0.00037544,14]
[357359211,1744017042388,-151.0,0.00037544,14]
[357359212,1744017042398,-208.685129,0.00037544,14]
[357359213,1744017042408,-834.657255,0.00037552,14]
[357359215,1744017042417,-834.657255,0.00037552,14]
[357359217,1744017042426,-151.0,0.00037552,14]
[357359218,1744017042435,-261.611118,0.00037552,14]
[357359219,1744017042445,-261.611118,0.00037552,14]
[357359220,1744017042454,-426.187883,0.00037552,14]
[357359221,1744017042463,-426.187883,0.00037552,14]
[357359222,1744017042472,-357.169974,0.00037552,14]
[357359223,1744017042482,-357.169974,0.00037552,14]
[357359224,1744017042491,-260.072162,0.00037552,14]
[357359225,1744017042500,-13.96003173,0.00037552,14]
[357359227,1744017042526,-246.11213027,0.00037552,14]
[357359229,1744017042535,-153.88786973,0.00037552,14]
[357359263,1744017043323,-174.0,0.00023014,2]
[357359264,1744017043333,-181.0,0.00024164,2]
[357359265,1744017043342,-174.0,0.00025775,2]
[357359266,1744017043352,-174.0,0.00027386,2]
[357359267,1744017043361,-174.0,0.00027616,2]
[357359268,1744017043370,-174.0,0.00028997,2]
[357359269,1744017043380,-400.0,0.0003686,3]
[357359270,1744017043389,-290.71635271,0.00036878,2]
[357359271,1744017043398,-169.72670727,0.00037552,14]
[357359272,1744017043410,-323.614577,0.00037552,14]
[357359273,1744017043421,-2023.300878,0.00037552,14]
[357359274,1744017043430,-164.836536,0.00037552,14]
[357359275,1744017043440,-164.836536,0.00037552,14]
[357359276,1744017043449,-151.0,0.00037552,14]
[357359277,1744017043459,-151.0,0.00037552,14]
[357359278,1744017043469,-408.558595,0.00037552,14]
[357359279,1744017043478,-151.0,0.00037552,14]
[357359280,1744017043488,-408.558595,0.00037552,14]
[357359281,1744017043497,-152.422976,0.00037552,14]
[357359282,1744017043506,-151.0,0.00037552,14]
[357359283,1744017043515,-896.130952,0.00037552,14]
[357359284,1744017043525,-896.130952,0.00037552,14]
[357359285,1744017043534,-151.0,0.00037552,14]
[357359286,1744017043544,-151.0,0.00037552,14]
[357359287,1744017043553,-151.0,0.00037552,14]
[357359288,1744017043562,-151.0,0.00037552,14]
[357359289,1744017043571,-151.0,0.00037552,14]
[357359290,1744017043581,-151.0,0.00037552,14]
[357359291,1744017043591,-354.37071,0.00037552,14]
[357359292,1744017043738,-354.37071,0.00037552,14]
[357359293,1744017043748,-151.0,0.00037552,14]
[357359294,1744017043757,-383.156646,0.00037552,14]
[357359295,1744017043766,-383.156646,0.00037552,14]
[357359296,1744017043776,-662.09555,0.00037552,14]
[357359297,1744017043785,-662.09555,0.00037552,14]
[357359298,1744017043797,-535.915428,0.00037552,14]
[357359299,1744017043806,-535.915428,0.00037552,14]
[357359300,1744017043816,-1192.537389,0.00037552,2]
[357359301,1744017043827,-1192.537389,0.00037552,2]
[357359302,1744017043836,-151.0,0.00037553,14]
[357359303,1744017043845,-151.0,0.00037553,14]
[357359304,1744017043855,-261.441472,0.00037553,14]
[357359305,1744017043864,-151.0,0.00037553,14]
[357359306,1744017043875,-3157.217287,0.00037553,14]
[357359307,1744017043885,-3157.217287,0.00037553,14]
[357359308,1744017043895,-834.657255,0.00037553,14]
[357359309,1744017043907,-834.657255,0.00037553,14]
[357359310,1744017043917,-261.611118,0.00037553,14]
[357359311,1744017043926,-261.611118,0.00037553,14]
[357359312,1744017043936,-151.0,0.00037553,14]
[357359313,1744017043945,-426.187883,0.00037553,14]
[357359314,1744017043955,-426.187883,0.00037553,14]
[357359315,1744017043965,-357.169974,0.00037553,14]
[357359316,1744017043974,-357.169974,0.00037553,14]
[357359317,1744017043983,-260.072162,0.00037553,14]
[357359318,1744017043993,-260.072162,0.00037553,14]
[357359319,1744017044002,-16.23334569,0.00037553,14]
[357359320,1744017044015,-307.38123131,0.00037553,14]
[357359321,1744017044025,-323.614577,0.00037553,14]
[357359322,1744017044035,-2023.300878,0.00037553,14]
[357359323,1744017044044,-164.836536,0.00037553,14]
[357359324,1744017044054,-164.836536,0.00037553,14]
[357359325,1744017044064,-733.427941,0.00037553,14]
[357359326,1744017044074,-733.427941,0.00037553,14]
[357359327,1744017044084,-408.558595,0.00037553,14]
[357359328,1744017044094,-408.558595,0.00037553,14]
[357359329,1744017044103,-151.0,0.00037553,14]
[357359330,1744017044113,-896.130952,0.00037553,14]
[357359331,1744017044122,-896.130952,0.00037553,14]
[357359332,1744017044132,-151.0,0.00037553,14]
[357359333,1744017044141,-151.0,0.00037553,14]
[357359334,1744017044154,-151.0,0.00037553,14]
[357359335,1744017044165,-151.0,0.00037553,14]
[357359336,1744017044176,-151.0,0.00037553,14]
[357359337,1744017044186,-154.944577,0.00037553,14]
[357359338,1744017044195,-213.258313,0.00037553,14]
[357359339,1744017044204,-213.258313,0.00037553,14]
[357359340,1744017044214,-1260.667683,0.00037553,14]
[357359341,1744017044223,-1260.667683,0.00037553,14]
[357359342,1744017044232,-1336.49035,0.00037553,14]
[357359343,1744017044242,-1336.49035,0.00037553,14]
[357359344,1744017044252,-647.729864,0.00037553,14]
[357359345,1744017044262,-647.729864,0.00037553,14]
[357359346,1744017044272,-151.0,0.00037553,14]
[357359347,1744017044281,-151.0,0.00037553,14]
[357359348,1744017044290,-542.260613,0.00037553,14]
[357359349,1744017044300,-542.260613,0.00037553,14]
[357359350,1744017044309,-366.689519,0.00037553,14]
[357359351,1744017044319,-151.0,0.00037553,14]
[357359352,1744017044329,-366.689519,0.00037553,14]
[357359353,1744017044338,-182.327556,0.00037553,14]
[357359354,1744017044347,-326.229334,0.00037553,14]
[357359355,1744017044357,-326.229334,0.00037553,14]
[357359356,1744017044366,-151.0,0.00037553,14]
[357359357,1744017044376,-204.306428,0.00037553,14]
[357359358,1744017044386,-204.306428,0.00037553,14]
[357359359,1744017044396,-3008.343652,0.00037553,14]
[357359360,1744017044408,-1257.08191345,0.00037553,14]
[357359411,1744017046414,-154.71305417,0.0003542,7]
[357359413,1744017046423,-1030.40155403,0.00037553,14]
[357359415,1744017046434,-720.86018452,0.00037553,14]
[357359416,1744017046443,-151.0,0.00037562,14]
[357359417,1744017046452,-151.0,0.00037562,14]
[357359418,1744017046461,-151.0,0.00037562,14]
[357359419,1744017046470,-151.0,0.00037562,14]
[357359421,1744017046479,-151.0,0.00037562,14]
[357359422,1744017046488,-51.63541548,0.00037562,14]
[357359423,1744017046523,-99.36458452,0.00037562,14]
[357359424,1744017046532,-151.0,0.00037562,14]
[357359425,1744017046541,-151.0,0.00037562,14]
[357359426,1744017046550,-2378.29126954,0.00037562,14]
[357359449,1744017069735,241.8179862,0.00025,120]
[357359450,1744017088746,274.154,0.00025,120]
[357359453,1744017302639,185.0654017,0.00013699,2]
[357359454,1744017464706,-363.76,0.0002,7]
[357359466,1744017707935,-436.24,0.0002,7]
[357359471,1744018128295,1861.673289,0.0002,120]
[357359534,1744018238443,-226.533,0.0002079,2]
[357359535,1744018238454,-236.436998,0.00021,2]
[357359537,1744018238467,-63.563001,0.00021,2]
[357359538,1744018238477,-2600.2269992,0.00024,3]
[357359539,1744018238490,-12399.7730008,0.00024,3]
[357359542,1744018238500,-576.0,0.00025,2]
[357359545,1744018238510,-500.0,0.00026161,2]
[357359546,1744018238520,-500.0,0.00026495,2]
[357359547,1744018238530,-336.2023666,0.00027263,2]
[357359548,1744018238541,-500.0,0.00027397,5]
[357359550,1744018238552,-204.68187498,0.00027593,2]
[357359552,1744018238563,-2767.68361384,0.000279,7]
[357359554,1744018238574,-500.0,0.00028,3]
[357359556,1744018238585,-500.0,0.00028466,2]
[357359558,1744018238595,-300.0,0.00028553,2]
[357359560,1744018238605,-6140.22612769,0.00028555,2]
[357359562,1744018238615,-2767.68361372,0.00028555,8]
[357359564,1744018238625,-500.0,0.00028768,2]
[357359566,1744018238641,-500.0,0.00028817,2]
[357359568,1744018238651,-302.84982697,0.0002899,2]
[357359570,1744018238661,-2767.68361372,0.0002921,8]
[357359572,1744018238671,-152.26,0.000298,31]
[357359574,1744018238681,-152.26,0.000298,31]
[357359576,1744018238691,-152.26,0.000298,31]
[357359578,1744018238700,-152.26,0.000298,31]
[357359580,1744018238709,-152.26,0.000298,31]
[357359582,1744018238719,-152.26,0.000298,31]
[357359583,1744018238729,-152.26,0.000298,31]
[357359584,1744018238739,-152.26,0.000298,31]
[357359585,1744018238749,-152.26,0.000298,31]
[357359586,1744018238758,-2767.68361372,0.00029866,8]
[357359587,1744018238768,-2663.7899992,0.0003,2]
[357359588,1744018238778,-583.4702464,0.00030238,2]
[357359589,1744018238787,-500.0,0.00030411,7]
[357359590,1744018238797,-2767.68361372,0.00030521,9]
[357359591,1744018238807,-500.0,0.00030623,7]
[357359592,1744018238816,-420.0,0.0003082,2]
[357359593,1744018238825,-2767.68361372,0.00031176,9]
[357359594,1744018238834,-200.0,0.000314,120]
[357359595,1744018238844,-846.52387854,0.00031577,7]
[357359596,1744018238855,-2767.68361372,0.00031831,10]
[357359597,1744018238865,-2767.68361372,0.00032486,10]
[357359598,1744018238875,-160.0,0.00032845,2]
[357359599,1744018238888,-160.0,0.00032845,2]
[357359600,1744018238898,-679.56509734,0.00032867,2]
[357359601,1744018238908,-1000.0,0.00032877,5]
[357359602,1744018238918,-2767.68361372,0.00033141,11]
[357359603,1744018238928,-268.64238,0.000332,120]
[357359604,1744018238938,-258.0,0.00033266,2]
[357359605,1744018238948,-281.3552759,0.00033297,2]
[357359606,1744018238959,-2767.68361372,0.00033797,11]
[357359607,1744018238969,-500.0,0.00034338,7]
[357359608,1744018238980,-500.0,0.00034386,7]
[357359609,1744018238990,-2767.68361372,0.00034452,11]
[357359610,1744018239000,-2767.68361372,0.00035107,12]
[357359611,1744018239010,-1167.51071968,0.000352,2]
[357359612,1744018239020,-152.26,0.000353,31]
[357359613,1744018239029,-152.26,0.000353,31]
[357359614,1744018239038,-152.26,0.000353,31]
[357359615,1744018239048,-152.26,0.000353,31]
[357359616,1744018239057,-152.26,0.000353,31]
[357359617,1744018239066,-152.26,0.000353,31]
[357359618,1744018239076,-152.26,0.000353,31]
[357359619,1744018239085,-152.26,0.000353,31]
[357359620,1744018239094,-152.26,0.000353,31]
[357359621,1744018239104,-152.26,0.000353,31]
[357359622,1744018239113,-152.26,0.000353,31]
[357359623,1744018239122,-152.26,0.000353,31]
[357359624,1744018239135,-152.26,0.000353,31]
[357359625,1744018239144,-152.26,0.000353,31]
[357359626,1744018239153,-152.26,0.000353,31]
[357359627,1744018239163,-152.26,0.000353,31]
[357359628,1744018239172,-152.26,0.000353,31]
[357359629,1744018239182,-152.26,0.000353,31]
[357359630,1744018239192,-500.0,0.00035495,7]
[357359631,1744018239202,-2767.68361372,0.00035762,12]
[357359632,1744018239213,-344.831669,0.0003589,2]
[357359633,1744018239222,-187.14101866,0.000359,2]
[357359634,1744018239231,-185.17044561,0.00035973,5]
[357359635,1744018239240,-500.0,0.00035973,5]
[357359636,1744018239252,-500.0,0.00035973,2]
[357359637,1744018239262,-500.0,0.00035973,5]
[357359638,1744018239271,-500.0,0.00035973,5]
[357359639,1744018239282,-500.0,0.00035973,5]
[357359640,1744018239291,-500.0,0.00035973,5]
[357359641,1744018239301,-500.0,0.00035973,5]
[357359642,1744018239310,-500.0,0.00035973,5]
[357359643,1744018239319,-500.0,0.00035973,5]
[357359644,1744018239328,-421.54863569,0.00035973,5]
[357359645,1744018239337,-500.0,0.00035973,5]
[357359646,1744018239346,-300.93045099,0.00035979,15]
[357359647,1744018239356,-500.0,0.00035979,15]
[357359648,1744018239365,-500.0,0.00035979,15]
[357359649,1744018239376,-500.0,0.00035979,15]
[357359650,1744018239387,-500.0,0.00035979,15]
[357359651,1744018239397,-500.0,0.00035979,15]
[357359652,1744018239406,-500.0,0.00035979,15]
[357359653,1744018239415,-500.0,0.00035979,15]
[357359654,1744018239424,-500.0,0.00035979,15]
[357359655,1744018239433,-500.0,0.00035979,15]
[357359656,1744018239442,-379.8,0.00035979,15]
[357359657,1744018239451,-476.68,0.0003598,3]
[357359658,1744018239460,-2917.25535354,0.0003598,3]
[357359659,1744018239470,-972.41845118,0.00035989,3]
[357359660,1744018239479,-500.0,0.00035989,15]
[357359661,1744018239488,-492.80163753,0.00035989,15]
[357359662,1744018239498,-151.0,0.00035989,2]
[357359663,1744018239507,-151.0,0.00035989,2]
[357359664,1744018239516,-260.76,0.00035989,2]
[357359665,1744018239525,-151.0,0.00035989,2]
[357359666,1744018239534,-151.0,0.00035989,2]
[357359667,1744018239544,-151.0,0.00035989,2]
[357359668,1744018239554,-151.0,0.00035989,2]
[357359669,1744018239563,-151.0,0.00035989,2]
[357359670,1744018239574,-151.0,0.00035989,2]
[357359671,1744018239583,-151.0,0.00035989,2]
[357359672,1744018239594,-635.54,0.0003599,3]
[357359673,1744018239604,-317.77,0.0003599,3]
[357359674,1744018239615,-158.88,0.0003599,3]
[357359675,1744018239624,-175931.82089,0.0003599,3]
[357359676,1744018239636,-4862.0922559,0.0003599,3]
[357359677,1744018239646,-2600.75091,0.00036,120]
[357359678,1744018239655,-268393.40055391,0.00036,7]
[357359679,1744018239664,-160.0,0.00036,7]
[357359680,1744018239674,-151.0,0.00036,14]
[357359682,1744018239683,-1140.5014602,0.00036,120]
[357359684,1744018239693,-250067.38737171,0.00036,30]
[357359685,1744018239703,-160.0,0.00036,7]
[357359686,1744018239712,-2045.76761489,0.000362,98]
[357359687,1744018239722,-2045.76761485,0.000362,98]
[357359690,1744018239846,-151.0,0.000362,17]
[357359691,1744018239856,-151.0,0.000363,10]
[357359692,1744018239866,-972.41845118,0.00036397,3]
[357359693,1744018239876,-35186.364178,0.00036407,3]
[357359694,1744018239887,-187.14101864,0.00036417,2]
[357359695,1744018239897,-2767.68361372,0.00036417,13]
[357359696,1744018239906,-151.0,0.000365,20]
[357359697,1744018239915,-2649.0970774,0.00036524,4]
[357359698,1744018239924,-1208.062625,0.000366,24]
[357359699,1744018239934,-151.0,0.000367,10]
[357359700,1744018239943,-1167.51071961,0.00036867,2]
[357359701,1744018239952,-500.0,0.00036891,7]
[357359702,1744018239961,-156.27527196,0.000369,2]
[357359703,1744018239971,-151.0,0.000369,12]
[357359704,1744018239980,-187.14101864,0.00036934,2]
[357359705,1744018239989,-972.41845118,0.00036958,3]
[357359706,1744018239998,-151.0,0.00036968,14]
[357359707,1744018240007,-151.0,0.00036968,14]